fUSD/lending_fUSD_20251011
["ID","MTS","AMOUNT","RATE_DAILY","PERIOD"]
[390774988,1760142720404,-687.13851865,0.00019725,2]
[390774989,1760142720413,-300.0,0.00019726,2]
[390774990,1760142720423,-300.0,0.00019726,2]
[390774991,1760142720433,-500.0,0.00019726,2]
[390774992,1760142720443,-500.0,0.00019726,2]
[390774993,1760142720453,-500.0,0.00019726,2]
[390774994,1760142720464,-500.0,0.00019726,2]
[390774995,1760142720476,-500.0,0.00019726,2]
[390774996,1760142720485,-688.7,0.00019726,2]
[390774997,1760142720494,-500.0,0.00019726,2]
[390774998,1760142720504,-300.0,0.00019726,2]
[390774999,1760142720514,-500.0,0.00019726,2]
[390775000,1760142720524,-500.0,0.00019726,2]
[390775001,1760142720533,-550.3,0.00019726,2]
[390775002,1760142720543,-500.0,0.00019726,2]
[390775003,1760142720555,-1974.49,0.00019726,2]
[390775004,1760142720568,-500.0,0.00019726,2]
[390775005,1760142720579,-500.0,0.00019726,2]
[390775006,1760142720589,-561.19,0.00019726,2]
[390775007,1760142720599,-500.0,0.00019726,2]
[390775008,1760142720609,-500.0,0.00019726,2]
[390775009,1760142720618,-500.0,0.00019726,2]
[390775010,1760142720628,-500.0,0.00019726,2]
[390775011,1760142720637,-500.0,0.00019726,2]
[390775012,1760142720647,-500.0,0.00019726,2]
[390775013,1760142720656,-1046.08,0.00019726,2]
[390775014,1760142720665,-500.0,0.00019726,2]
[390775015,1760142720675,-599.08,0.00019726,2]
[390775016,1760142720684,-500.0,0.00019726,2]
[390775017,1760142720695,-500.0,0.00019726,2]
[390775018,1760142720704,-500.0,0.00019726,2]
[390775019,1760142720714,-500.0,0.00019726,2]
[390775020,1760142720726,-969.35,0.00019726,2]
[390775021,1760142720735,-500.0,0.00019726,2]
[390775022,1760142720745,-500.0,0.00019726,2]
[390775023,1760142720755,-500.0,0.00019726,2]
[390775024,1760142720764,-500.0,0.00019726,2]
[390775025,1760142720774,-261.52192164,0.00019726,2]
[390775026,1760142720783,-206.77561498,0.00019726,2]
[390775027,1760142720793,-782.5,0.00019726,2]
[390775028,1760142720803,-500.0,0.00019726,2]
[390775029,1760142720812,-500.0,0.00019726,2]
[390775030,1760142720822,-1023.15,0.00019726,2]
[390775031,1760142720831,-613.81,0.00019726,2]
[390775032,1760142720840,-500.0,0.00019726,2]
[390775033,1760142720850,-500.0,0.00019726,2]
[390775034,1760142720859,-500.0,0.00019726,2]
[390775035,1760142720868,-500.0,0.00019726,2]
[390775036,1760142720878,-287.96742014,0.00019726,2]
[390775037,1760142720887,-689.88,0.00019726,2]
[390775038,1760142720897,-500.0,0.00019726,2]
[390775039,1760142720907,-500.0,0.00019726,2]
[390775040,1760142720916,-873.91,0.00019726,2]
[390775041,1760142720926,-500.0,0.00019726,2]
[390775042,1760142720935,-500.0,0.00019726,2]
[390775043,1760142720945,-917.72,0.00019726,2]
[390775044,1760142720954,-728.72,0.00019726,2]
[390775045,1760142720964,-500.0,0.00019726,2]
[390775046,1760142720976,-393.16538031,0.00019726,2]
[390775047,1760142720986,-1689.35,0.00019726,2]
[390775048,1760142720995,-161.70827386,0.00019726,2]
[390775049,1760142721005,-500.0,0.00019726,2]
[390775050,1760142721015,-882.96,0.00019726,2]
[390775051,1760142721025,-500.0,0.00019726,2]
[390775052,1760142721034,-500.0,0.00019726,2]
[390775053,1760142721043,-500.0,0.00019726,2]
[390775054,1760142721053,-500.0,0.00019726,2]
[390775055,1760142721062,-500.0,0.00019726,2]
[390775056,1760142721072,-500.0,0.00019726,2]
[390775057,1760142721081,-806.44,0.00019726,2]
[390775058,1760142721091,-730.98,0.00019726,2]
[390775059,1760142721101,-776.55,0.00019726,2]
[390775060,1760142721112,-500.0,0.00019726,2]
[390775061,1760142721121,-500.0,0.00019726,2]
[390775062,1760142721131,-1456.78,0.00019726,2]
[390775063,1760142721142,-1414.66,0.00019726,2]
[390775064,1760142721153,-602.31,0.00019726,2]
[390775065,1760142721163,-910.02,0.00019726,2]
[390775066,1760142721172,-500.0,0.00019726,2]
[390775067,1760142721184,-500.0,0.00019726,2]
[390775068,1760142721194,-500.0,0.00019726,2]
[390775069,1760142721203,-1079.52,0.00019726,2]
[390775070,1760142721213,-500.0,0.00019726,2]
[390775071,1760142721225,-500.0,0.00019726,2]
[390775072,1760142721235,-502.58127202,0.00019726,2]
[390775073,1760142721244,-500.0,0.00019726,2]
[390775074,1760142721256,-1286.89,0.00019726,2]
[390775075,1760142721265,-569.05,0.00019726,2]
[390775076,1760142721275,-633.46,0.00019726,2]
[390775077,1760142721284,-500.0,0.00019726,2]
[390775078,1760142721294,-791.7,0.00019726,2]
[390775079,1760142721306,-531.84,0.00019726,2]
[390775080,1760142721316,-539.06,0.00019726,2]
[390775081,1760142721328,-500.0,0.00019726,2]
[390775082,1760142721337,-500.0,0.00019726,2]
[390775083,1760142721347,-500.0,0.00019726,2]
[390775084,1760142721357,-1907.45,0.00019726,2]
[390775085,1760142721367,-1870.06,0.00019726,2]
[390775086,1760142721376,-1870.06,0.00019726,2]
[390775087,1760142721385,-663.03,0.00019726,2]
[390775088,1760142721396,-1120.37,0.00019726,2]
[390775089,1760142721405,-1760.64,0.00019726,2]
[390775090,1760142721415,-500.0,0.00019726,2]
[390775091,1760142721424,-500.0,0.00019726,2]
[390775092,1760142721433,-629.2613449,0.00019726,2]
[390775093,1760142721443,-500.0,0.00019726,2]
[390775094,1760142721452,-709.85,0.00019726,2]
[390775095,1760142721462,-500.0,0.00019726,2]
[390775096,1760142721473,-123.20839504,0.00019726,2]
[390775097,1760142721518,-219.30181342,0.00019078,3]
[390775098,1760142721527,-137.98434632,0.00019452,7]
[390775099,1760142721574,-1153.58263303,0.00019452,7]
[390775100,1760142721585,-540.43967541,0.00019452,7]
[390775101,1760142721596,-501.98998724,0.00019452,7]
[390775102,1760142721607,-169.65382538,0.00019726,2]
[390775103,1760142723790,-374.10048388,0.000149,2]
[390775104,1760142723801,-1380.89951612,0.00014964,5]
[390775105,1760142723825,-50.10048388,0.00014964,5]
[390775106,1760142723835,-252.80620625,0.00015019,5]
[390775107,1760142723872,-1178.19379375,0.00015019,5]
[390775108,1760142723883,-1431.0,0.00015074,5]
[390775109,1760142723893,-1431.0,0.00015128,5]
[390775110,1760142723907,-1431.0,0.00015183,5]
[390775111,1760142723918,-1431.0,0.00015238,5]
[390775112,1760142723928,-1431.0,0.00015293,5]
[390775113,1760142723939,-1431.0,0.00015348,5]
[390775114,1760142723948,-1431.0,0.00015402,5]
[390775115,1760142723958,-1431.0,0.00015457,5]
[390775116,1760142723968,-189.365435,0.00017,2]
[390775117,1760142723981,-189.365435,0.00017,2]
[390775118,1760142723991,-189.365435,0.000191,2]
[390775119,1760142724000,-189.365435,0.000191,2]
[390775120,1760142724010,-4850.54654939,0.000191,2]
[390775121,1760142724019,-189.365435,0.00019178,2]
[390775122,1760142724029,-500.0,0.00019178,2]
[390775123,1760142724039,-500.0,0.00019178,2]
[390775124,1760142724049,-189.365435,0.00019178,2]
[390775125,1760142724058,-322.45172239,0.00019452,2]
[390775126,1760142724068,-189.365435,0.00019452,7]
[390775127,1760142724078,-500.0,0.00019452,2]
[390775128,1760142724088,-189.365435,0.00019452,7]
[390775129,1760142724098,-828.95777958,0.00019726,2]
[390775130,1760142724108,-1177.88,0.00019726,2]
[390775131,1760142724119,-500.0,0.00019726,2]
[390775132,1760142724128,-1199.08,0.00019726,2]
[390775133,1760142724139,-500.0,0.00019726,2]
[390775134,1760142724151,-619.78,0.00019726,2]
[390775135,1760142724160,-500.0,0.00019726,2]
[390775136,1760142724170,-589.28,0.00019726,2]
[390775137,1760142724180,-500.0,0.00019726,2]
[390775138,1760142724190,-500.0,0.00019726,2]
[390775139,1760142724200,-304.01217488,0.00019726,2]
[390775140,1760142724215,-195.98782512,0.00019726,2]
[390775141,1760142724228,-250.12808605,0.00019726,2]
[390775142,1760142724239,-300.0,0.00019726,2]
[390775143,1760142724248,-500.0,0.00019726,2]
[390775144,1760142724259,-500.0,0.00019726,2]
[390775145,1760142724268,-500.0,0.00019726,2]
[390775146,1760142724278,-1730.94,0.00019726,2]
[390775147,1760142724288,-500.0,0.00019726,2]
[390775148,1760142724297,-416.34175818,0.00019726,2]
[390775149,1760142724313,-500.0,0.00019726,2]
[390775150,1760142724323,-500.0,0.00019726,2]
[390775151,1760142724333,-500.0,0.00019726,2]
[390775152,1760142724343,-500.0,0.00019726,2]
[390775153,1760142724795,-895.96,0.00019726,2]
[390775154,1760142724809,-500.0,0.00019726,2]
[390775155,1760142724818,-326.6286705,0.00019726,2]
[390775156,1760142724827,-500.0,0.00019726,2]
[390775157,1760142724837,-500.0,0.00019726,2]
[390775158,1760142724846,-500.0,0.00019726,2]
[390775159,1760142724856,-500.0,0.00019726,2]
[390775160,1760142724865,-500.0,0.00019726,2]
[390775161,1760142724875,-1460.49,0.00019726,2]
[390775162,1760142724884,-500.0,0.00019726,2]
[390775163,1760142724894,-500.0,0.00019726,2]
[390775164,1760142724904,-501.40573406,0.00019726,2]
[390775165,1760142724915,-1497.72,0.00019726,2]
[390775166,1760142724924,-500.0,0.00019726,2]
[390775167,1760142724934,-1879.3,0.00019726,2]
[390775168,1760142724943,-500.0,0.00019726,2]
[390775169,1760142724953,-501.3163901,0.00019726,2]
[390775170,1760142724963,-500.0,0.00019726,2]
[390775171,1760142724972,-500.0,0.00019726,2]
[390775172,1760142724984,-703.68,0.00019726,2]
[390775173,1760142724994,-500.0,0.00019726,2]
[390775174,1760142725003,-500.0,0.00019726,2]
[390775175,1760142725013,-833.55,0.00019726,2]
[390775176,1760142725022,-500.0,0.00019726,2]
[390775177,1760142725032,-500.0,0.00019726,2]
[390775178,1760142725042,-500.0,0.00019726,2]
[390775179,1760142725051,-500.0,0.00019726,2]
[390775180,1760142725062,-500.0,0.00019726,2]
[390775181,1760142725072,-609.69,0.00019726,2]
[390775182,1760142725082,-222.84,0.00019726,2]
[390775183,1760142725096,-500.0,0.00019726,2]
[390775184,1760142725107,-500.0,0.00019726,2]
[390775185,1760142725118,-151.0,0.00019726,7]
[390775186,1760142725128,-151.0,0.00019726,7]
[390775187,1760142725139,-508.74,0.00019726,2]
[390775188,1760142725149,-500.0,0.00019726,2]
[390775189,1760142725159,-785.38,0.00019726,2]
[390775190,1760142725168,-500.0,0.00019726,2]
[390775191,1760142725178,-500.0,0.00019726,2]
[390775192,1760142725188,-151.0,0.00019726,7]
[390775193,1760142725198,-151.0,0.00019726,7]
[390775194,1760142725207,-951.92,0.00019726,2]
[390775195,1760142725218,-576.1,0.00019726,2]
[390775196,1760142725232,-500.0,0.00019726,2]
[390775197,1760142725243,-500.0,0.00019726,2]
[390775198,1760142725252,-1283.4,0.00019726,2]
[390775199,1760142725262,-500.0,0.00019726,2]
[390775200,1760142725272,-500.0,0.00019726,2]
[390775201,1760142725282,-157.567001,0.00019726,7]
[390775202,1760142725292,-157.567001,0.00019726,7]
[390775203,1760142725302,-157.567001,0.00019726,7]
[390775204,1760142725312,-1116.2,0.00019726,2]
[390775205,1760142725325,-157.567001,0.00019726,7]
[390775206,1760142725335,-986.69,0.00019726,2]
[390775207,1760142725344,-1564.1,0.00019726,2]
[390775208,1760142725353,-273.540126,0.00019726,7]
[390775209,1760142725363,-500.0,0.00019726,2]
[390775210,1760142725372,-500.0,0.00019726,2]
[390775211,1760142725383,-500.0,0.00019726,2]
[390775212,1760142725394,-500.0,0.00019726,2]
[390775213,1760142725403,-545.71,0.00019726,2]
[390775214,1760142725413,-453.83198919,0.00019726,2]
[390775215,1760142725422,-1080.77,0.00019726,2]
[390775216,1760142725432,-302.22863712,0.00019726,2]
[390775217,1760142725442,-500.0,0.00019726,2]
[390775218,1760142725452,-500.0,0.00019726,2]
[390775219,1760142725461,-500.0,0.00019726,2]
[390775220,1760142725471,-151.0,0.00019726,7]
[390775221,1760142725482,-500.0,0.00019726,2]
[390775222,1760142725492,-151.0,0.00019726,7]
[390775223,1760142725506,-745.57,0.00019726,2]
[390775224,1760142725516,-500.0,0.00019726,2]
[390775225,1760142725526,-500.0,0.00019726,2]
[390775226,1760142725537,-1014.5,0.00019726,2]
[390775227,1760142725547,-500.0,0.00019726,2]
[390775228,1760142725556,-699.84,0.00019726,2]
[390775229,1760142725567,-500.0,0.00019726,2]
[390775230,1760142725577,-500.0,0.00019726,2]
[390775231,1760142725587,-500.0,0.00019726,2]
[390775232,1760142725597,-500.0,0.00019726,2]
[390775233,1760142725607,-500.0,0.00019726,2]
[390775234,1760142725617,-500.0,0.00019726,2]
[390775235,1760142725627,-989.47,0.00019726,2]
[390775236,1760142725638,-500.0,0.00019726,2]
[390775237,1760142725648,-741.06,0.00019726,2]
[390775238,1760142725658,-400.0,0.00019726,2]
[390775239,1760142725668,-500.0,0.00019726,2]
[390775240,1760142725678,-500.0,0.00019726,2]
[390775241,1760142725688,-151.0,0.00019726,7]
[390775242,1760142725698,-500.0,0.00019726,2]
[390775243,1760142725708,-500.0,0.00019726,2]
[390775244,1760142725718,-500.0,0.00019726,2]
[390775245,1760142725732,-1103.49,0.00019726,2]
[390775246,1760142725742,-500.0,0.00019726,2]
[390775247,1760142725754,-500.0,0.00019726,2]
[390775248,1760142725764,-170.4534021,0.00019726,2]
[390775249,1760142725776,-500.0,0.00019726,2]
[390775250,1760142725787,-500.0,0.00019726,2]
[390775251,1760142725799,-500.0,0.00019726,2]
[390775252,1760142725810,-500.0,0.00019726,2]
[390775253,1760142725820,-151.0,0.00019726,7]
[390775254,1760142725831,-500.0,0.00019726,2]
[390775255,1760142725844,-903.5,0.00019726,2]
[390775256,1760142725854,-151.0,0.00019726,7]
[390775257,1760142725865,-500.0,0.00019726,2]
[390775258,1760142725876,-1005.42,0.00019726,2]
[390775259,1760142725887,-500.0,0.00019726,2]
[390775260,1760142725898,-151.0,0.00019726,7]
[390775261,1760142725909,-228.133536,0.00019726,7]
[390775262,1760142725920,-500.0,0.00019726,2]
[390775263,1760142725931,-500.0,0.00019726,2]
[390775264,1760142725942,-500.0,0.00019726,2]
[390775265,1760142725956,-500.0,0.00019726,2]
[390775266,1760142725966,-401.2364009,0.00019726,2]
[390775267,1760142725977,-500.0,0.00019726,2]
[390775268,1760142725987,-151.0,0.00019726,7]
[390775269,1760142725997,-500.0,0.00019726,2]
[390775270,1760142726008,-500.0,0.00019726,2]
[390775271,1760142726018,-500.0,0.00019726,2]
[390775272,1760142726028,-151.0,0.00019726,7]
[390775273,1760142726038,-783.65,0.00019726,2]
[390775274,1760142726048,-500.0,0.00019726,2]
[390775275,1760142726060,-500.0,0.00019726,2]
[390775276,1760142726071,-1062.07,0.00019726,2]
[390775277,1760142726082,-205.87321687,0.00019726,2]
[390775278,1760142726093,-356.47956367,0.00019726,2]
[390775279,1760142726103,-500.0,0.00019726,2]
[390775280,1760142726113,-151.0,0.00019726,7]
[390775281,1760142726123,-500.0,0.00019726,2]
[390775282,1760142726133,-622.9266412,0.00019726,2]
[390775283,1760142726142,-500.0,0.00019726,2]
[390775284,1760142726152,-500.0,0.00019726,2]
[390775285,1760142726161,-500.0,0.00019726,2]
[390775286,1760142726171,-500.0,0.00019726,2]
[390775287,1760142726181,-500.0,0.00019726,2]
[390775288,1760142726191,-500.0,0.00019726,2]
[390775289,1760142726202,-573.92,0.00019726,2]
[390775290,1760142726213,-1127.3,0.00019726,2]
[390775291,1760142726223,-543.64,0.00019726,2]
[390775292,1760142726235,-267.40050179,0.00019726,2]
[390775293,1760142726245,-300.0,0.00019726,2]
[390775294,1760142726256,-377.09,0.00019726,2]
[390775295,1760142726267,-500.0,0.00019726,2]
[390775296,1760142726277,-237.71134076,0.00019726,2]
[390775297,1760142726288,-500.0,0.00019726,2]
[390775298,1760142726298,-240.0,0.00019726,7]
[390775299,1760142726313,-500.0,0.00019726,2]
[390775300,1760142726327,-240.0,0.00019726,7]
[390775301,1760142726337,-400.0,0.00019726,2]
[390775302,1760142726348,-240.0,0.00019726,7]
[390775303,1760142726359,-206.421906,0.00019726,7]
[390775304,1760142726369,-240.0,0.00019726,7]
[390775305,1760142726379,-206.421906,0.00019726,7]
[390775306,1760142726389,-500.0,0.00019726,2]
[390775307,1760142726400,-151.0,0.00019726,7]
[390775308,1760142726410,-500.0,0.00019726,2]
[390775309,1760142726420,-206.421906,0.00019726,7]
[390775310,1760142726430,-500.0,0.00019726,2]
[390775311,1760142726439,-401.03984187,0.00019726,2]
[390775312,1760142726449,-595.08,0.00019726,2]
[390775313,1760142726459,-151.0,0.00019726,7]
[390775314,1760142726470,-206.421906,0.00019726,7]
[390775315,1760142726483,-1675.19,0.00019726,2]
[390775316,1760142726493,-151.0,0.00019726,7]
[390775317,1760142726504,-500.0,0.00019726,2]
[390775318,1760142726515,-151.0,0.00019726,7]
[390775319,1760142726525,-500.0,0.00019726,2]
[390775320,1760142726535,-500.0,0.00019726,2]
[390775321,1760142726545,-151.0,0.00019726,7]
[390775322,1760142726555,-500.0,0.00019726,2]
[390775323,1760142726565,-151.0,0.00019726,7]
[390775324,1760142726576,-500.0,0.00019726,2]
[390775325,1760142726586,-500.0,0.00019726,2]
[390775326,1760142726600,-500.0,0.00019726,2]
[390775327,1760142726610,-151.0,0.00019726,7]
[390775328,1760142726620,-151.0,0.00019726,7]
[390775329,1760142726632,-151.0,0.00019726,7]
[390775330,1760142726642,-2270.8,0.00019726,2]
[390775331,1760142726653,-981.53,0.00019726,2]
[390775332,1760142726663,-1402.86,0.00019726,2]
[390775333,1760142726673,-151.0,0.00019726,7]
[390775334,1760142726683,-151.0,0.00019726,7]
[390775335,1760142726694,-500.0,0.00019726,2]
[390775336,1760142726704,-500.0,0.00019726,2]
[390775337,1760142726715,-153.079382,0.00019726,7]
[390775338,1760142726728,-500.0,0.00019726,2]
[390775339,1760142726740,-500.0,0.00019726,2]
[390775340,1760142726750,-665.24,0.00019726,2]
[390775341,1760142726761,-500.0,0.00019726,2]
[390775342,1760142726771,-1273.48,0.00019726,2]
[390775343,1760142726783,-500.0,0.00019726,2]
[390775344,1760142726795,-500.0,0.00019726,2]
[390775345,1760142726806,-500.14,0.00019726,2]
[390775346,1760142726816,-502.39395482,0.00019726,2]
[390775347,1760142726827,-500.0,0.00019726,2]
[390775348,1760142726837,-500.0,0.00019726,2]
[390775349,1760142726847,-1072.81,0.00019726,2]
[390775350,1760142726857,-500.0,0.00019726,2]
[390775351,1760142726868,-1506.87,0.00019726,2]
[390775352,1760142726878,-500.0,0.00019726,2]
[390775353,1760142726887,-500.0,0.00019726,2]
[390775354,1760142726897,-491.73521238,0.00019726,2]
[390775355,1760142726906,-500.0,0.00019726,2]
[390775356,1760142726918,-500.0,0.00019726,2]
[390775357,1760142726928,-631.81,0.00019726,2]
[390775358,1760142726938,-500.0,0.00019726,2]
[390775359,1760142726948,-1237.65,0.00019726,2]
[390775360,1760142726959,-500.0,0.00019726,2]
[390775361,1760142726970,-500.0,0.00019726,2]
[390775362,1760142726984,-500.0,0.00019726,2]
[390775363,1760142726994,-500.0,0.00019726,2]
[390775364,1760142727004,-500.0,0.00019726,2]
[390775365,1760142727013,-500.0,0.00019726,2]
[390775366,1760142727024,-500.0,0.00019726,2]
[390775367,1760142727034,-977.84,0.00019726,2]
[390775368,1760142727043,-500.0,0.00019726,2]
[390775369,1760142727054,-500.0,0.00019726,2]
[390775370,1760142727064,-285.956394,0.00019726,7]
[390775371,1760142727074,-500.0,0.00019726,2]
[390775372,1760142727084,-569.18,0.00019726,2]
[390775373,1760142727094,-285.956394,0.00019726,7]
[390775374,1760142727103,-400.0,0.00019726,2]
[390775375,1760142727113,-725.92,0.00019726,2]
[390775376,1760142727123,-285.956394,0.00019726,7]
[390775377,1760142727133,-285.956394,0.00019726,7]
[390775378,1760142727143,-500.0,0.00019726,2]
[390775379,1760142727153,-151.0,0.00019726,7]
[390775380,1760142727164,-1367.82,0.00019726,2]
[390775381,1760142727174,-151.0,0.00019726,7]
[390775382,1760142727184,-500.0,0.00019726,2]
[390775383,1760142727194,-501.8679678,0.00019726,2]
[390775384,1760142727204,-500.0,0.00019726,2]
[390775385,1760142727216,-500.0,0.00019726,2]
[390775386,1760142727228,-500.0,0.00019726,2]
[390775387,1760142727238,-300.9508548,0.00019726,2]
[390775388,1760142727248,-585.93,0.00019726,2]
[390775389,1760142727259,-1014.53,0.00019726,2]
[390775390,1760142727270,-916.21,0.00019726,2]
[390775391,1760142727282,-469.47656273,0.00019726,2]
[390775392,1760142727291,-500.0,0.00019726,2]
[390775393,1760142727302,-776.59,0.00019726,2]
[390775394,1760142727313,-500.0,0.00019726,2]
[390775395,1760142727325,-151.0,0.00019726,7]
[390775396,1760142727337,-500.0,0.00019726,2]
[390775397,1760142727347,-400.0,0.00019726,2]
[390775398,1760142727357,-151.0,0.00019726,7]
[390775399,1760142727366,-500.0,0.00019726,2]
[390775400,1760142727376,-797.72,0.00019726,2]
[390775401,1760142727386,-500.0,0.00019726,2]
[390775402,1760142727397,-727.3,0.00019726,2]
[390775403,1760142727407,-216.981399,0.00019726,7]
[390775404,1760142727417,-151.0,0.00019726,7]
[390775405,1760142727427,-216.981399,0.00019726,7]
[390775406,1760142727438,-500.0,0.00019726,2]
[390775407,1760142727447,-500.0,0.00019726,2]
[390775408,1760142727458,-216.981399,0.00019726,7]
[390775409,1760142727467,-1733.4,0.00019726,2]
[390775410,1760142727480,-216.981399,0.00019726,7]
[390775411,1760142727490,-500.0,0.00019726,2]
[390775412,1760142727500,-500.0,0.00019726,2]
[390775413,1760142727510,-1169.99,0.00019726,2]
[390775414,1760142727520,-500.0,0.00019726,2]
[390775415,1760142727530,-500.0,0.00019726,2]
[390775416,1760142727540,-500.0,0.00019726,2]
[390775417,1760142727550,-500.0,0.00019726,2]
[390775418,1760142727560,-500.0,0.00019726,2]
[390775419,1760142727571,-500.0,0.00019726,2]
[390775420,1760142727580,-1147.29,0.00019726,2]
[390775421,1760142727591,-625.71,0.00019726,2]
[390775422,1760142727601,-500.0,0.00019726,2]
[390775423,1760142727612,-579.22,0.00019726,2]
[390775424,1760142727622,-500.0,0.00019726,2]
[390775425,1760142727631,-500.0,0.00019726,2]
[390775426,1760142727641,-500.0,0.00019726,2]
[390775427,1760142727651,-500.0,0.00019726,2]
[390775428,1760142727661,-1281.49,0.00019726,2]
[390775429,1760142727671,-500.0,0.00019726,2]
[390775430,1760142727680,-500.0,0.00019726,2]
[390775431,1760142727690,-500.0,0.00019726,2]
[390775432,1760142727700,-196.58055,0.00019726,7]
[390775433,1760142727711,-500.0,0.00019726,2]
[390775434,1760142727722,-196.58055,0.00019726,7]
[390775435,1760142727735,-500.0,0.00019726,2]
[390775436,1760142727746,-500.0,0.00019726,2]
[390775437,1760142727759,-196.58055,0.00019726,7]
[390775438,1760142727768,-500.0,0.00019726,2]
[390775439,1760142727778,-500.0,0.00019726,2]
[390775440,1760142727788,-500.0,0.00019726,2]
[390775441,1760142727798,-500.0,0.00019726,2]
[390775442,1760142727807,-196.58055,0.00019726,7]
[390775443,1760142727817,-834.53,0.00019726,2]
[390775444,1760142727827,-205.49577303,0.00019726,2]
[390775445,1760142727837,-500.0,0.00019726,2]
[390775446,1760142727847,-873.54,0.00019726,2]
[390775447,1760142727857,-500.0,0.00019726,2]
[390775448,1760142727867,-500.0,0.00019726,2]
[390775449,1760142727877,-310.80837126,0.00019726,2]
[390775450,1760142727887,-500.0,0.00019726,2]
[390775451,1760142727898,-818.68,0.00019726,2]
[390775452,1760142727908,-500.0,0.00019726,2]
[390775453,1760142727918,-500.0,0.00019726,2]
[390775454,1760142727928,-500.0,0.00019726,2]
[390775455,1760142727938,-151.0,0.00019726,7]
[390775456,1760142727948,-500.0,0.00019726,2]
[390775457,1760142727957,-151.0,0.00019726,7]
[390775458,1760142727967,-500.0,0.00019726,2]
[390775459,1760142727979,-151.0,0.00019726,7]
[390775460,1760142727989,-151.0,0.00019726,7]
[390775461,1760142727999,-151.0,0.00019726,7]
[390775462,1760142728009,-2636.53,0.00019726,2]
[390775463,1760142728019,-500.0,0.00019726,2]
[390775464,1760142728027,-500.0,0.00019726,2]
[390775465,1760142728036,-2926.75,0.00019726,2]
[390775466,1760142728046,-264.875628,0.00019726,7]
[390775467,1760142728056,-500.0,0.00019726,2]
[390775468,1760142728067,-500.0,0.00019726,2]
[390775469,1760142728078,-500.0,0.00019726,2]
[390775470,1760142728088,-500.0,0.00019726,2]
[390775471,1760142728099,-500.0,0.00019726,2]
[390775472,1760142728109,-500.0,0.00019726,2]
[390775473,1760142728120,-500.0,0.00019726,2]
[390775474,1760142728130,-500.0,0.00019726,2]
[390775475,1760142728140,-508.93006751,0.00019726,2]
[390775476,1760142728150,-500.0,0.00019726,2]
[390775477,1760142728160,-558.92,0.00019726,2]
[390775478,1760142728170,-500.0,0.00019726,2]
[390775479,1760142728181,-500.0,0.00019726,2]
[390775480,1760142728191,-500.0,0.00019726,2]
[390775481,1760142728201,-500.0,0.00019726,2]
[390775482,1760142728211,-779.9,0.00019726,2]
[390775483,1760142728220,-172.449077,0.00019726,7]
[390775484,1760142728234,-172.449077,0.00019726,7]
[390775485,1760142728244,-500.0,0.00019726,2]
[390775486,1760142728255,-500.0,0.00019726,2]
[390775487,1760142728265,-500.0,0.00019726,2]